[Event "44th Chess Olympiad Open 2022"]
[Site "Chennai"]
[Date "2022.08.01"]
[Round "4.38"]
[White "Kwon, Sehyun"]
[Black "Avila Pavas, Santiago"]
[Result "1/2-1/2"]
[WhiteElo "2225"]
[BlackElo "2453"]
[Annotator "TA"]
[PlyCount "183"]
[EventDate "2022.??.??"]
[TimeControl "60"]

{[%evp 13,183,19,20,0,0,-6,3,0,24,24,82,8,48,37,57,74,67,51,119,119,102,102,
102,91,132,98,101,111,101,25,130,90,85,89,81,83,129,116,151,141,151,115,144,
143,280,278,278,267,258,270,271,239,411,406,389,358,345,310,416,233,29994,
29995,29995,0,413,272,279,250,410,393,385,274,280,266,273,273,274,274,274,274,
277,289,1362,1351,1354,1314,1358,1325,992,760,1718,1629,1629,442,1370,441,1444,
1316,1234,441,1853,1703,1723,1525,1725,0,0,0,0,0,0,8,2657,1402,2754,2717,2587,
247,2120,1556,2049,0,0,0,0,0,0,0,0,0,0,0,0,0,0,0,0,0,0,0,0,0,0,0,0,0,0,0,0,0,0,
0,0,0,0,0,0,0,0,0,0,0,0,0,0,0,0,0,0,0,0,0]} 1. e4 {[%emt 18:22:19]} c5 {
[%emt 0:00:09]} 2. Nf3 {[%emt 0:00:18]} e6 {[%emt 0:00:07]} 3. c3 {[%emt 0:00:
00]} d5 {[%emt 0:00:45]} 4. exd5 {[%emt 0:00:14]} Qxd5 {[%emt 0:00:11]} 5. d4 {
[%emt 0:00:47]} Nf6 {[%emt 0:01:56]} 6. Na3 {[%emt 0:00:34]} a6 {[%emt 0:11:07]
} 7. Nc4 {[%emt 0:06:13]} Nbd7 {[%emt 0:01:03]} 8. Ne3 {[%emt 0:13:38] B22:
Sicilian: 2 c3.} Qc6 {[%emt 0:10:17]} 9. Bd3 {[%emt 0:13:35]} b6 {[%emt 0:00:
00]} 10. O-O {[%emt 0:00:01] [#]} Bd6 $146 {[%emt 0:04:09]} ({Predecessor:} 
10... Bb7 11. Ne5 Qc7 12. Re1 Be7 13. N3g4 h5 14. Nxf6+ gxf6 15. Nxd7 Qxd7 16.
Be4 O-O-O {0-1 (37) Kazhgaleyev,M (2653)-Sasikiran,K (2664) Ha Long City 2009})
11. Re1 {[%emt 0:06:52]} Bb7 {[%emt 0:12:42]} (11... O-O $11) 12. Nc4 {[%emt 0:
00:00]} (12. Nf5 $1 $16) 12... Bc7 {[%emt 0:08:26]} 13. Nce5 $1 {[%emt 0:02:05]
} Bxe5 {[%emt 0:00:28]} 14. dxe5 {[%emt 0:00:21]} Nd5 {[%emt 0:00:44]} 15. c4 {
[%emt 0:05:43]} Nb4 {[%emt 0:06:04]} (15... Ne7 $1 $14) 16. Be4 $36 {[%emt 0:
00:00] White is on the roll.} Qc7 {[%emt 0:07:36]} 17. Bxb7 $1 {[%emt 0:02:10]}
Qxb7 {[%emt 0:00:05]} 18. Ng5 $1 {[%emt 0:00:48]} Rd8 {[%emt 0:00:00][%cal
Yd7e5]} 19. Ne4 {[%emt 0:07:07]} O-O {[%emt 0:00:06]} 20. Bg5 {[%emt 0:03:49]}
f6 {[%emt 0:00:04]} 21. Qf3 {[%emt 0:02:21] White is more active.} Rf7 {
[%emt 0:09:42]} (21... fxg5 $2 22. Nf6+ $1 gxf6 23. Qxb7 $18) (21... Kh8 $11 {
remains equal.} 22. exf6 Nxf6) 22. Nxf6+ {[%emt 0:00:00]} Nxf6 {[%emt 0:00:04]}
23. Qxb7 {[%emt 0:00:06]} Rxb7 {[%emt 0:00:04]} 24. exf6 {[%emt 0:00:06]
Threatens to win with f7+.} gxf6 {[%emt 0:01:53]} (24... Rd6 $142) 25. Bxf6 {
[%emt 0:00:12]} Rd2 {[%emt 0:00:18]} 26. Bc3 {[%emt 0:00:00]} Rc2 27. Re3 {
[%emt 0:02:10]} Rf7 {[%emt 0:00:15]} 28. f3 {[%emt 0:00:27]} (28. Rxe6 Rfxf2
29. Kh1 (29. Re8+ Kf7 $17) 29... Rxg2 $15) 28... Rd7 {[%emt 0:00:00]} (28... e5
$16 29. Bxe5 (29. Rxe5 Nd3 $16) 29... Re7) 29. a3 $18 {[%emt 0:00:03]} (29.
Rxe6 $6 Nd3 $18) 29... Nc6 30. Rxe6 {[%emt 0:00:29]} Nd4 {[#]} 31. Re8+ {
[%emt 0:00:10]} ({Much less strong is} 31. Rxb6 $6 Ne2+ 32. Kh1 Nxc3 $16) 31...
Kf7 {[%emt 0:00:04]} 32. Rae1 {[%emt 0:00:18]} Rd6 $2 {[%emt 0:00:00]} (32...
h6 {was necessary.} 33. h4 b5) 33. R1e7+ {[%emt 0:00:49]} Kg6 {[%emt 0:00:06]}
34. Rg8+ {[%emt 0:00:35]} Kh6 35. Bxd4 {[%emt 0:00:51] Intending Be3+ and mate.
} cxd4 {Endgame KRR-KRR} 36. Re4 {[%emt 0:00:00]} (36. g4 $142 {g5+ would kill
now.} Rg6 37. Rd8) 36... Kh5 {[%emt 0:00:00]} (36... Rg6 $18 37. Rxg6+ hxg6 38.
Rh4+ (38. Rxd4 Rxb2 39. Rd5 Rc2 $18) 38... Kg7 39. Rxd4 Rxb2) 37. Re5+ {
[%emt 0:00:06]} Kh6 {[%emt 0:00:02] [#]} 38. Re4 {[%emt 0:00:04]} (38. g4 $142
$1 Rc1+ 39. Kf2 Rc2+ 40. Kg3 Rg2+ 41. Kxg2 Rg6 42. Rh5#) 38... Kh5 $1 39. g3 {
[%emt 0:00:36][%csl Gg3][%cal Re4h4]} Rg6 {[%emt 0:00:01]} 40. Rxg6 {[%emt 0:
01:14]} hxg6 {[%emt 0:00:06]} (40... Kxg6 41. Rxd4 Rxb2 42. Rd6+ Kg7 43. Rd7+
Kg6) 41. Rxd4 {[%emt 0:02:06]} Rxb2 {[%emt 0:00:00] KR-KR} 42. c5 {[%emt 0:02:
31]} bxc5 {[%emt 0:04:11]} 43. Rd5+ {[%emt 0:00:00]} Kh6 {[%emt 0:00:05]} 44.
Rxc5 {[%emt 0:00:09]} Rb3 {[%emt 0:00:03]} 45. Ra5 {[%emt 0:00:19]} Rxf3 {
[%emt 0:00:23]} 46. Rxa6 {[%emt 0:00:08]} Rc3 {[%emt 0:16:36]} 47. Kg2 {
[%emt 0:03:18]} Kh5 $2 {[%emt 0:12:23]} (47... Rc2+ 48. Kh3 Kg5 49. Ra5+ Kf6)
48. Ra5+ {[%emt 0:03:44]} Kh6 {[%emt 0:00:01]} 49. h4 {[%emt 0:06:54]} Rd3 {
[%emt 0:00:21]} 50. Kh3 {[%emt 0:00:22]} Rc3 {[%emt 0:00:00]} 51. Ra7 {[%emt 0:
07:33]} Rd3 {[%emt 0:00:07]} 52. Kg4 {[%emt 0:00:28]} Rc3 {[%emt 0:00:11]} 53.
Ra4 {[%emt 0:00:39]} (53. a4 $142 Rc8 54. Kh3) 53... Rd3 {[%emt 0:00:48]} (
53... Rc6 $142 54. Ra8 Rc4+ 55. Kh3 Kh7) 54. Kf4 {[%emt 0:00:00]} (54. Ra8 $142
Rd4+ 55. Kh3) 54... Kh5 {[%emt 0:02:56]} (54... Rc3 $142 55. Ra7 Rc4+ 56. Kf3
Rc8) 55. Ra5+ {[%emt 0:05:14]} Kh6 56. Ra8 {[%emt 0:00:41] Strongly
threatening a4.} Rc3 {[%emt 0:00:50]} (56... Rd4+ $142 57. Kf3 Rc4) 57. a4 {
[%emt 0:01:06]} Rc4+ {[%emt 0:00:05]} 58. Ke5 {[%emt 0:01:20]} Kh5 {[%emt 0:02:
49]} 59. Ra6 $2 {[%emt 0:00:33]} ({White must play} 59. a5 $18 Kg4 60. Ra6)
59... Rg4 $1 $11 {[%emt 0:00:32]} 60. Ra8 {[%emt 0:00:28][%cal Ra8h8]} Rxg3 {
[%emt 0:00:21]} 61. Rh8+ {[%emt 0:00:30]} Kg4 {[%emt 0:00:05]} 62. Rh6 {
[%emt 0:00:21]} Ra3 $2 {[%emt 0:00:44]} (62... Re3+ $11 63. Kd5 Kf5) 63. Rxg6+
$18 {[%emt 0:00:38]} Kxh4 {[%emt 0:00:02]} 64. Ra6 {[%emt 0:00:28]} Kg5 {
[%emt 0:00:07]} 65. Kd5 $2 {[%emt 0:00:18]} (65. a5 Ra2 66. Ra8) 65... Kf5 $2 {
[%emt 0:00:22]} (65... Rf3 66. Ra8 Rf5+ 67. Kd4 Kh6) 66. Kc4 {[%emt 0:00:00]}
Ke5 {[%emt 0:00:32]} 67. Kb4 $2 {[%emt 0:00:19]} (67. a5 $18 {aiming for Rh6.}
Ke4 68. Re6+ Kf5 69. Rh6) 67... Ra1 $11 {[%emt 0:00:07] The position is equal.}
68. Rc6 {[%emt 0:00:30]} Kd5 {[%emt 0:00:09]} 69. Rc2 {[%emt 0:00:28]} Rb1+ {
[%emt 0:00:22]} 70. Ka5 {[%emt 0:00:04]} Kd6 {[%emt 0:00:04]} 71. Ka6 {[%emt 0:
00:12]} Rb4 {[%emt 0:00:19]} 72. a5 {[%emt 0:00:25]} Kd7 {[%emt 0:00:00]} 73.
Ka7 {[%emt 0:00:32]} Rb5 {[%emt 0:00:13]} 74. a6 {[%emt 0:00:23]} Rb1 {[%emt 0:
00:05]} 75. Rh2 {[%emt 0:00:53]} (75. Rg2 $5 {[%cal Rg2c2]}) 75... Kc7 {
[%emt 0:01:23]} 76. Rh7+ {[%emt 0:00:26]} Kc8 {[%emt 0:00:25]} 77. Rb7 {
[%emt 0:00:50]} Ra1 {[%emt 0:00:25]} 78. Rb4 Kc7 {[%emt 0:00:33]} 79. Rb6 {
[%emt 0:00:25]} (79. Rc4+ Kd6 80. Kb7 Rb1+ 81. Ka8 Kd5 $14) 79... Ra2 {[%emt 0:
00:00]} 80. Rb4 {[%emt 0:00:27]} Ra1 {[%emt 0:00:05]} 81. Rc4+ {[%emt 0:00:03]}
Kd7 {[%emt 0:00:05]} 82. Rc2 {[%emt 0:01:19]} Ra3 {[%emt 0:00:07]} 83. Kb7 {
[%emt 0:00:12]} Rb3+ {[%emt 0:00:06]} 84. Ka8 {[%emt 0:00:03]} Ra3 {[%emt 0:00:
00]} 85. a7 {[%emt 0:00:09]} Rb3 $1 {[%emt 0:00:05]} 86. Rh2 {[%emt 0:00:17]}
Kc7 {[%emt 0:00:06]} 87. Rh7+ {[%emt 0:00:08]} Kc8 {[%emt 0:00:08]} 88. Rh8+ {
[%emt 0:00:07]} Kc7 {[%emt 0:00:04]} 89. Rb8 {[%emt 0:00:07]} Rc3 {[%emt 0:00:
00]} 90. Rb7+ {[%emt 0:02:38]} Kc8 {[%emt 0:00:04]} 91. Rb8+ {[%emt 0:00:09]}
Kc7 {[%emt 0:00:04]} 92. Rb7+ {[%emt 0:00:23] Black escapes into a draw.
Weighted Error Value: White=0.41/Black=0.45} 1/2-1/2

[Event "44th Chess Olympiad Open 2022"]
[Site "Chennai"]
[Date "2022.08.01"]
[Round "4.38"]
[White "Li, Georgiy"]
[Black "Valderrama Quiceno, Esteban Alb"]
[Result "0-1"]
[WhiteElo "1994"]
[BlackElo "2436"]
[Annotator "TA"]
[PlyCount "53"]
[EventDate "2022.??.??"]
[TimeControl "60"]

{[%evp 15,53,-20,-34,-159,-143,-114,-91,-178,-170,-177,-76,-55,-56,-209,-103,
-355,-322,-435,-437,-720,-763,-756,-741,-736,-790,-765,-810,-802,-800,-776,
-566,-900,-880,-1094,-1081,-1088,-1095,-1077,-1066,-5465]} 1. c4 {[%emt 0:00:
00]} Nf6 {[%emt 0:02:01]} 2. Nc3 {[%emt 0:00:22]} e5 {[%emt 0:02:47]} 3. g3 {
[%emt 0:01:05]} c6 {[%emt 0:05:54][%cal Yc7c6,Yc6d5,Yd5d4]} 4. Bg2 {[%emt 0:07:
15]} d5 {[%emt 0:01:17]} 5. cxd5 {[%emt 0:00:53]} cxd5 {[%emt 0:00:00]} 6. d4 {
[%emt 0:04:34]} exd4 {[%emt 0:01:52]} 7. Qxd4 {[%emt 0:00:33]} Nc6 {[%emt 0:00:
08]} 8. Qa4 {[%emt 0:02:43] 8.Qa4 scores better than 8.Qd1.} d4 {[%emt 0:01:21]
} 9. Nb5 {[%emt 0:06:28] A23: English Opening: 1...e5 2 Nc3 Nf6 3 g3 c6.} (9.
Bxc6+ $15 bxc6 10. Ne4 (10. Qxc6+ $2 Bd7 $19)) 9... Bb4+ $17 {[%emt 0:02:53]}
10. Kf1 {[%emt 0:01:28]} O-O {[%emt 0:00:53]} 11. Bf4 {[%emt 0:00:00] [#]} (11.
Bg5 $17) 11... Nd5 $1 $19 {[%emt 0:08:31]} 12. Rd1 {[%emt 0:00:00] [#]} Bc5
$146 {[%emt 0:07:27]} (12... Nxf4 $19 13. gxf4 Qb6) ({Predecessor:} 12... Nxf4
13. gxf4 Qb6 14. Nf3 Rd8 15. Ne5 Nxe5 16. fxe5 Bd7 17. Qxb4 Bxb5 18. Ke1 a5 {
1-0 (27) Bitalzadeh,A (2434)-Jens,J (2356) Germany 2009}) 13. Qc4 {[%emt 0:02:
15]} Nxf4 {[%emt 0:00:31]} 14. gxf4 {[%emt 0:16:37] [#]} (14. Qxc5 $15 Nxg2 15.
Kxg2) 14... Qb6 {[%emt 0:02:27]} (14... Bb6 $1 $19 {has better winning chances.
Hoping for ...Qf6.} 15. Be4 (15. Bxc6 $2 bxc6 16. Qxc6 Bd7 $19) 15... Be6) 15.
b4 $2 {[%emt 0:22:15]} (15. Nc7 $17 Qxc7 16. Qxc5) 15... Nxb4 {[%emt 0:04:50]
aiming for ...Be6.} ({Avoid the trap} 15... Bxb4 $2 16. Bxc6 Qxc6 17. Qxc6 bxc6
18. Rxd4 $19) 16. Nxd4 {[%emt 0:00:00]} Rd8 {[%emt 0:00:57] Black is clearly
winning.} 17. Ngf3 {[%emt 0:09:14]} (17. e3 $142 Be6 18. Nxe6 Rxd1+ 19. Ke2
fxe6 20. Kxd1 Bxe3 21. Nh3 (21. fxe3 $2 Qxe3 22. Qc7 Qd3+ 23. Ke1 Nc2+ 24. Qxc2
Qxc2 $19) 21... Bxf2 22. Nxf2 Qxf2 23. Qxb4 Rd8+ 24. Kc1 Qxg2 25. Re1) 17...
Be6 {[%emt 0:01:32]} 18. Qc3 {[%emt 0:00:00]} Rac8 {[%emt 0:02:18]} 19. a3 {
[%emt 0:10:58]} Na2 {[%emt 0:02:55]} 20. Qd3 {[%emt 0:02:45]} Bxd4 {[%emt 0:00:
20] A strong pair of Bishops.} 21. Ng5 {[%emt 0:00:33]} g6 {[%emt 0:00:20]
White must now prevent ...Bf6.} 22. Nxe6 {[%emt 0:00:31]} Qxe6 {[%emt 0:00:58]}
23. Bh3 {[%emt 0:03:22]} Qc6 {[%emt 0:00:00][%cal Rc6h1]} 24. Rg1 {[%emt 0:00:
58] [#]} Bxf2 $1 {[%emt 0:00:33]} 25. Qxd8+ {[%emt 0:00:57]} (25. Bd7 Qb6)
25... Rxd8 {[%emt 0:00:06]} 26. Rxd8+ {[%emt 0:00:06]} Kg7 {[%emt 0:00:03]} 27.
Rg5 {[%emt 0:01:30] Weighted Error Value: White=0.93/Black=0.18 (very precise)}
0-1

[Event "44th Chess Olympiad Open 2022"]
[Site "Chennai"]
[Date "2022.08.01"]
[Round "4.39"]
[White "Gomez, John Paul"]
[Black "Ribbegren, Karl Johan"]
[Result "1-0"]
[WhiteElo "2451"]
[BlackElo "2198"]
[Annotator "TA"]
[PlyCount "65"]
[EventDate "2022.??.??"]
[TimeControl "60"]

{[%evp 15,65,16,31,12,23,32,44,0,57,66,83,97,87,83,75,43,24,0,0,0,0,8,112,104,
183,180,172,172,314,302,439,292,302,290,412,414,404,405,417,417,419,411,402,
402,462,477,466,470,631,603,808,728]} 1. d4 {[%emt 0:00:07]} Nf6 {[%emt 0:00:
00]} 2. c4 {[%emt 0:00:11]} g6 {[%emt 0:02:02]} 3. Nc3 {[%emt 0:00:16]} Bg7 {
[%emt 0:00:24]} 4. e4 {[%emt 0:00:14]} d6 {[%emt 0:00:59]} 5. f4 {[%emt 0:00:
00]} O-O {[%emt 0:01:00]} 6. Nf3 {[%emt 0:00:10]} e5 {[%emt 0:01:27]} 7. fxe5 {
[%emt 0:02:14] 7.fxe5 is better than 7.dxe5.} dxe5 {[%emt 0:00:08]} 8. d5 {
[%emt 0:00:10]} c6 {[%emt 0:02:27] has lost popularity (8...Na6).} 9. Bg5 {
[%emt 0:03:53][%cal Yc1g5,Yg5h4,Yh4f2,Yf2g1] E76: King's Indian: Four Pawns
Attack: Lines specific to 6 Nf3 move-order.} (9. Nxe5 $2 Re8 10. Nf3 (10. Bf4
$2 Nxe4 11. Nxe4 Bxe5 $19) 10... Nxe4 11. Nxe4 Rxe4+ 12. Be2 Qb6 $17) 9... h6 {
[%emt 0:05:05]} 10. Bh4 {[%emt 0:00:29]} Nbd7 {[%emt 0:11:02]} 11. Bd3 {
[%emt 0:02:11] White is slightly better.} g5 {[%emt 0:05:32]} (11... Qb6 $11)
12. Bf2 $14 {[%emt 0:00:43]} Ng4 {[%emt 0:08:53]} 13. Bg1 {[%emt 0:00:21] [#]
White is more active.} f5 $146 {[%emt 0:03:28]} ({Predecessor:} 13... cxd5 14.
cxd5 f5 15. Nd2 Ndf6 16. Qb3 fxe4 17. Ndxe4 Nxe4 18. Nxe4 Bf5 19. O-O-O Nf6 20.
Nxf6+ Qxf6 {1-0 (46) Luce,S (2340)-Bush,C Kecskemet 1989}) 14. dxc6 {[%emt 0:
00:00]} (14. exf5 e4 15. Nxe4 (15. Bxe4 Bxc3+ 16. bxc3 Re8 $17) 15... cxd5 16.
cxd5 Nde5 $14) 14... bxc6 {[%emt 0:00:32]} 15. Qe2 {[%emt 0:03:08]} (15. exf5
e4 16. Nxe4 (16. Bxe4 Bxc3+ 17. bxc3 Qe7 $19) 16... Nde5 $15) 15... Qa5 {
[%emt 0:12:14]} 16. O-O-O {[%emt 0:04:43] White wants to play Bc2.} (16. Nd2 $5
{[%cal Rd2b3]}) 16... Nc5 {[%emt 0:02:01]} 17. Bxc5 {[%emt 0:02:27]} Qxc5 {
[%emt 0:00:58]} 18. exf5 {[%emt 0:01:09]} e4 {[%emt 0:02:07]} (18... Nf2 $11 {
remains equal.}) 19. Nxe4 $16 {[%emt 0:01:59][%cal Yc3e4,Ye4c5,Yc5b3,Yb3d2]} (
19. Bxe4 $2 Bxc3 20. bxc3 Rb8 $19) 19... Qa5 {[%emt 0:03:59]} (19... Qxf5 $16 {
was called for.} 20. Ng3 Qf4+ 21. Kb1 Rb8) 20. h3 $18 {[%emt 0:00:00]} Nf6 {
[%emt 0:05:42]} 21. Nd4 {[%emt 0:20:02] And now Rhf1 would win.} Qxa2 {[%emt 0:
11:51]} (21... Nxe4 {keeps fighting.} 22. Qxe4 (22. Bxe4 Qxa2 23. Nxc6 Qa1+ 24.
Kd2 Qxb2+ 25. Ke1 Qc3+ 26. Kf1 Be6 $16) 22... Bxd4 23. Qxd4 Bxf5) 22. Bb1 {
[%emt 0:01:18]} Qa1 {[%emt 0:01:56]} (22... Qa4 $142 23. Nc5 Qa5) 23. Nc5 {
[%emt 0:01:11] Ndb3 is the strong threat. Pair of Knights!} Re8 {[%emt 0:00:00]
} 24. Qc2 {[%emt 0:00:52] Threatens to win with Ndb3.} Rb8 {[%emt 0:00:00]} (
24... Qa5 $142) 25. Ndb3 {[%emt 0:00:59]} ({Don't blunder} 25. Nxc6 $2 {[#]}
Bxf5 $1 26. Rd3 Nd7 $1 $19) 25... Rxb3 {[%emt 0:00:35]} 26. Nxb3 {[%emt 0:00:
14]} Qa6 {[%emt 0:01:11]} 27. Rhe1 {[%emt 0:01:20]} Rxe1 {[%emt 0:02:08]} 28.
Rxe1 {[%emt 0:00:08]} Qb6 {[%emt 0:01:30]} 29. g4 {[%emt 0:00:00]} a5 {[%emt 0:
00:36]} 30. c5 {[%emt 0:01:22] White is clearly winning.} Qb4 {[%emt 0:00:21]
Prevents Qc4+.} 31. Nd2 {[%emt 0:00:49]} Kh8 {[%emt 0:00:00]} 32. Qc4 {[%emt 0:
01:24]} Qb8 {[%emt 0:00:39]} 33. Qf7 {[%emt 0:02:25] Weighted Error Value:
White=0.13 (very precise) /Black=0.50} 1-0

[Event "44th Chess Olympiad Open 2022"]
[Site "Chennai"]
[Date "2022.08.01"]
[Round "4.39"]
[White "Bersamina, Paulo"]
[Black "Van Hoolandt, Patrick"]
[Result "1-0"]
[WhiteElo "2429"]
[BlackElo "2044"]
[Annotator "TA"]
[PlyCount "95"]
[EventDate "2022.??.??"]
[TimeControl "60"]

{[%evp 17,95,0,0,0,0,0,0,0,15,14,11,0,0,0,11,18,428,78,98,8,58,39,467,439,612,
36,96,65,95,73,70,57,65,50,74,64,75,67,54,31,606,-616,168,152,136,157,260,232,
1530,52,147,0,0,0,156,142,1087,1071,967,862,1969,1854,1967,1937,1868,1725,1608,
1548,1401,761,744,741,29979,29980,29983,29984,29994,29995,29995,29996]} 1. e4 {
[%emt 0:00:02]} e5 {[%emt 0:00:10]} 2. Nf3 {[%emt 0:00:06]} Nc6 {[%emt 0:00:03]
} 3. Bc4 {[%emt 0:00:08]} Bc5 {[%emt 0:00:07]} 4. c3 {[%emt 0:00:04]} Nf6 {
[%emt 0:00:05]} 5. d4 {[%emt 0:00:07]} exd4 {[%emt 0:00:07]} 6. e5 {[%emt 0:00:
00]} d5 {[%emt 0:00:08]} 7. Bb5 {[%emt 0:00:06]} Ne4 {[%emt 0:00:05]} 8. cxd4 {
[%emt 0:00:06]} Bb6 {[%emt 0:00:03]} 9. Nc3 {[%emt 0:00:15]} O-O {[%emt 0:00:
00]} 10. Be3 {[%emt 0:00:06] C54: Giuoco Piano: 4 c3 Nf6, main lines with 5 d4
and 5 d3.} Bg4 {[%emt 0:02:50]} 11. h3 {[%emt 0:00:29]} Bh5 {[%emt 0:02:26]}
12. Qc2 {[%emt 0:00:07] The position is equal.} Bg6 {[%emt 0:01:31] ...Nxc3 is
the strong threat. 12...Nxc3 might become the main line.} 13. Qb3 {[%emt 0:00:
00]} Ne7 {[%emt 0:11:10]} 14. O-O {[%emt 0:00:14]} c6 {[%emt 0:00:41]} 15. Bd3
{[%emt 0:00:12]} Nd2 {[%emt 0:05:36]} 16. Nxd2 {[%emt 0:00:07] [#]} Bf5 $146 {
[%emt 0:00:05]} (16... Bxd3 $11 {and Black is okay.} 17. Rfe1 Bg6) ({
Predecessor:} 16... Bxd3 17. Rfe1 Ng6 18. Na4 Bf5 19. Rac1 f6 20. Nf3 Be4 21.
Nd2 Bf5 22. Nc5 fxe5 23. Nxb7 {0-1 (40) Robson,R (2681)-Aronian,L (2785) Saint
Louis 2022}) 17. Be4 $2 Bxe4 {[%emt 0:00:30]} 18. Rfe1 {[%emt 0:00:37]} (18.
Ndxe4 $16 dxe4 19. Rfd1 (19. Nxe4 Qd5 $16)) 18... Bd3 {[%emt 0:10:53]} (18...
Bg6 $11) 19. Na4 {[%emt 0:00:40]} (19. Nxd5 $5 Qxd5 20. Qxd3 $11) 19... Nf5 $2
{[%emt 0:05:11]} 20. Nxb6 {[%emt 0:00:29]} Ba6 {[%emt 0:01:51]} 21. Qc3 $2 {
[%emt 0:03:21]} Qxb6 {[%emt 0:11:28]} (21... axb6 $14 22. Nf3 Nxe3 23. Rxe3 Re8
) 22. Nf3 {[%emt 0:01:06]} Qc7 {[%emt 0:05:40]} 23. Qc2 {[%emt 0:04:27]} Qd7 {
[%emt 0:05:48]} 24. Rad1 {[%emt 0:04:02]} Rfe8 {[%emt 0:00:47]} 25. Bc1 {
[%emt 0:02:55]} h6 {[%emt 0:07:29]} 26. b3 {[%emt 0:19:02]} b6 {[%emt 0:04:23]}
27. Ba3 {[%emt 0:01:29]} Rac8 {[%emt 0:01:50]} 28. g4 {[%emt 0:04:38]} Qe6 {
[%emt 0:00:14]} 29. Nh4 $4 {[%emt 0:00:24]} (29. gxf5 $18 Qd7 30. Kh2) 29...
Ne7 $4 {[%emt 0:03:42]} (29... Nxh4 $19 30. Qc3 g5) 30. f4 $18 {[%emt 0:03:56]
[%cal Yf2f4,Yf4f5] Black must now prevent f5.} c5 {[%emt 0:02:15]} 31. Qf2 {
[%emt 0:00:38] White is more active.} (31. dxc5 Qc6 $14) 31... cxd4 {[%emt 0:
05:54]} (31... Qc6 $16 {might work better.} 32. f5 Kh7) 32. f5 $1 {[%emt 0:06:
31]} Rc3 $2 {[%emt 0:02:06]} (32... Qd7 33. e6 (33. Qxd4 Rc2 $16) 33... fxe6)
33. Bd6 $2 {[%emt 0:13:56]} (33. fxe6 $18 fxe6 34. Rf1 $1 Bxf1 35. Rxf1) 33...
Qc8 {[#]} ({Black should try} 33... Qd7 $14) 34. Bxe7 {[%emt 0:00:00]} ({Reject
} 34. e6 $6 f6 $14) (34. f6 $1 $16 Nc6 35. Nf5) 34... Rxe7 $11 {[%emt 0:00:48]}
35. f6 $36 {[%emt 0:00:00] White is more active.} Re8 {[%emt 0:10:41] [#]} ({
Don't take} 35... gxf6 36. Nf5 Re6 37. Nxh6+ Kf8 38. Qf5 Rg3+ 39. Kh2 $16) (
35... Re6 $1 $11) 36. Nf5 $1 $16 {[%emt 0:00:00] And now Qh4 would win.} ({
Worse is} 36. fxg7 Bd3 $11) 36... Qe6 $2 {[%emt 0:00:24]} (36... Rxh3 $16 37.
fxg7 Qe6) 37. Nxg7 $18 {[%emt 0:00:50]} Qc6 {[%emt 0:00:09]} 38. e6 {[%emt 0:
02:10]} Re3 {[%emt 0:00:40]} 39. Rxe3 {[%emt 0:01:02]} dxe3 {[%emt 0:00:02]}
40. Qxe3 {[%emt 0:00:36]} Rxe6 {[%emt 0:01:16]} 41. Nxe6 {[%emt 0:30:16]} fxe6
{[%emt 0:00:00]} 42. Qxh6 {[%emt 0:01:19][%csl Gf6][%cal Rh6g7] Endgame KQR-KQB
} Qc7 {[%emt 0:00:01] Inhibits Qg7+.} 43. f7+ {[%emt 0:01:28]} Qxf7 {[%emt 0:
00:20]} 44. Re1 {[%emt 0:00:24]} Qf3 {[%emt 0:00:00]} 45. Qxe6+ {[%emt 0:00:00]
White mates.} Kg7 {[%emt 0:00:00]} 46. Qd7+ {[%emt 0:00:00]} Kh6 {[%emt 0:00:
00]} 47. Re6+ {[%emt 0:00:00]} Kg5 {[%emt 0:00:00]} 48. Qd8+ {[%emt 0:00:00]
Weighted Error Value: White=0.81/Black=1.20} 1-0